fUST/lending_fUST_20250831
["ID","MTS","AMOUNT","RATE_DAILY","PERIOD"]
[382486951,1756645854911,-9795.82,0.0001805,2]
[382486953,1756645854920,-510.19,0.0001805,2]
[382486955,1756645854930,-1799.19,0.0001805,2]
[382486957,1756645854940,-480.0,0.0001805,2]
[382486959,1756645854950,-1815.48,0.0001805,2]
[382486961,1756645854959,-1239.85,0.0001805,2]
[382486962,1756645854968,-1243.99,0.0001805,2]
[382486964,1756645854978,-2273.44,0.0001805,2]
[382486966,1756645854987,-1453.44,0.0001805,2]
[382486968,1756645854997,-7266.03,0.0001805,2]
[382486970,1756645855006,-6863.46,0.0001805,2]
[382486972,1756645855015,-1291.97,0.0001805,2]
[382486974,1756645855025,-480.0,0.0001805,2]
[382486975,1756645855034,-3400.52,0.0001805,2]
[382486977,1756645855044,-480.0,0.0001805,2]
[382486979,1756645855053,-676.9,0.0001805,2]
[382486981,1756645855063,-882.2,0.0001805,2]
[382486983,1756645855074,-480.0,0.0001805,2]
[382486985,1756645855083,-1727.82,0.0001805,2]
[382486987,1756645855093,-480.0,0.0001805,2]
[382486989,1756645855103,-2155.02,0.0001805,2]
[382486991,1756645855113,-1506.67,0.0001805,2]
[382486993,1756645855123,-1473.14,0.0001805,2]
[382486995,1756645855134,-9350.55,0.0001805,2]
[382486996,1756645855144,-11950.65,0.0001805,2]
[382486998,1756645855155,-482.7570103,0.0001805,2]
[382487000,1756645855164,-504.09332105,0.0001805,2]
[382487002,1756645855174,-4682.5,0.0001805,2]
[382487004,1756645855183,-2611.73,0.0001805,2]
[382487006,1756645855193,-2642.58,0.0001805,2]
[382487008,1756645855202,-984.47,0.0001805,2]
[382487010,1756645855211,-1092.28,0.0001805,2]
[382487012,1756645855221,-480.0,0.00018051,2]
[382487014,1756645855231,-1639.01,0.00018051,2]
[382487015,1756645855240,-775.67,0.00018051,2]
[382487017,1756645855250,-592.85,0.00018051,2]
[382487019,1756645855260,-1073.78,0.00018051,2]
[382487021,1756645855270,-480.0,0.00018051,2]
[382487023,1756645855279,-784.34,0.00018051,2]
[382487025,1756645855289,-873.07,0.00018051,2]
[382487027,1756645855298,-480.0,0.00018051,2]
[382487029,1756645855307,-480.0,0.00018051,2]
[382487031,1756645855316,-954.95,0.00018051,2]
[382487033,1756645855325,-535.04,0.00018051,2]
[382487035,1756645855334,-480.0,0.00018051,2]
[382487037,1756645855343,-480.0,0.00018051,2]
[382487038,1756645855352,-713.16,0.00018051,2]
[382487040,1756645855362,-480.0,0.00018051,2]
[382487042,1756645855371,-1899.2,0.00018051,2]
[382487044,1756645855380,-480.0,0.00018051,2]
[382487046,1756645855389,-1189.58,0.00018051,2]
[382487048,1756645855399,-551.61,0.00018051,2]
[382487050,1756645855408,-669.84,0.00018051,2]
[382487052,1756645855416,-506.59,0.00018051,2]
[382487054,1756645855426,-480.0,0.00018051,2]
[382487056,1756645855435,-1447.21,0.00018051,2]
[382487058,1756645855444,-480.0,0.00018051,2]
[382487060,1756645855454,-596.66,0.00018051,2]
[382487061,1756645855462,-298.40581978,0.00018051,2]
[382487063,1756645855472,-1812.76,0.00018051,2]
[382487065,1756645855481,-480.0,0.00018051,2]
[382487067,1756645855491,-1432.24,0.00018051,2]
[382487069,1756645855500,-480.0,0.00018051,2]
[382487071,1756645855510,-480.0,0.00018051,2]
[382487073,1756645855520,-480.0,0.00018051,2]
[382487075,1756645855529,-1623.33,0.00018051,2]
[382487077,1756645855539,-509.27,0.00018051,2]
[382487079,1756645855548,-480.0,0.00018051,2]
[382487080,1756645855558,-480.0,0.00018051,2]
[382487082,1756645855569,-611.89,0.00018051,2]
[382487084,1756645855578,-850.53,0.00018051,2]
[382487086,1756645855587,-811.93,0.00018051,2]
[382487088,1756645855597,-498.41,0.00018051,2]
[382487090,1756645855606,-787.75,0.00018051,2]
[382487092,1756645855615,-793.07,0.00018051,2]
[382487094,1756645855625,-480.0,0.00018051,2]
[382487096,1756645855637,-1569.43,0.00018051,2]
[382487098,1756645855646,-1455.08,0.00018051,2]
[382487100,1756645855655,-1642.79,0.00018051,2]
[382487102,1756645855665,-567.49,0.00018051,2]
[382487103,1756645855674,-480.0,0.00018051,2]
[382487105,1756645855683,-1815.96,0.00018051,2]
[382487107,1756645855693,-1603.31,0.00018051,2]
[382487109,1756645855702,-480.0,0.00018051,2]
[382487111,1756645855711,-692.12,0.00018051,2]
[382487113,1756645855721,-706.43,0.00018051,2]
[382487115,1756645855730,-480.0,0.00018051,2]
[382487117,1756645855739,-268.02018647,0.00018051,2]
[382487119,1756645855748,-500.74,0.00018051,2]
[382487121,1756645855758,-727.79,0.00018051,2]
[382487123,1756645855767,-480.0,0.00018051,2]
[382487125,1756645855777,-2898.88,0.00018051,2]
[382487127,1756645855786,-1737.4,0.00018051,2]
[382487129,1756645855795,-480.0,0.00018052,2]
[382487130,1756645855805,-670.77,0.00018052,2]
[382487132,1756645855814,-668.58,0.00018052,2]
[382487134,1756645855823,-480.0,0.00018052,2]
[382487136,1756645855832,-480.0,0.00018052,2]
[382487138,1756645855842,-480.0,0.00018052,2]
[382487140,1756645855851,-480.0,0.00018052,2]
[382487142,1756645855860,-480.0,0.00018052,2]
[382487144,1756645855869,-499.35843453,0.00018052,2]
[382487146,1756645855879,-1634.35,0.00018052,2]
[382487147,1756645855888,-549.81,0.00018052,2]
[382487149,1756645855897,-676.83,0.00018052,2]
[382487151,1756645855907,-480.0,0.00018052,2]
[382487153,1756645855917,-480.0,0.00018052,2]
[382487155,1756645855926,-480.0,0.00018052,2]
[382487157,1756645855936,-1122.96,0.00018052,2]
[382487159,1756645855945,-480.0,0.00018052,2]
[382487161,1756645855955,-480.0,0.00018052,2]
[382487163,1756645855966,-490.82,0.00018052,2]
[382487165,1756645855977,-1361.75,0.00018052,2]
[382487167,1756645855986,-1645.4,0.00018052,2]
[382487169,1756645855997,-480.0,0.00018052,2]
[382487171,1756645856007,-480.0,0.00018052,2]
[382487173,1756645856016,-480.0,0.00018052,2]
[382487175,1756645856026,-786.67,0.00018052,2]
[382487177,1756645856036,-704.28,0.00018052,2]
[382487178,1756645856046,-480.0,0.00018052,2]
[382487180,1756645856055,-617.33,0.00018052,2]
[382487182,1756645856066,-480.0,0.00018052,2]
[382487184,1756645856075,-627.93,0.00018052,2]
[382487186,1756645856085,-480.0,0.00018052,2]
[382487188,1756645856095,-619.85714217,0.00018052,2]
[382487190,1756645856107,-480.0,0.00018052,2]
[382487192,1756645856117,-480.0,0.00018052,2]
[382487194,1756645856126,-480.0,0.00018052,2]
[382487196,1756645856135,-480.0,0.00018052,2]
[382487198,1756645856145,-1768.58,0.00018052,2]
[382487200,1756645856155,-481.84,0.00018052,2]
[382487202,1756645856164,-1590.36,0.00018052,2]
[382487204,1756645856176,-480.0,0.00018052,2]
[382487206,1756645856186,-480.0,0.00018052,2]
[382487208,1756645856195,-480.0,0.00018052,2]
[382487209,1756645856204,-480.0,0.00018052,2]
[382487211,1756645856214,-480.0,0.00018052,2]
[382487213,1756645856224,-480.0,0.00018052,2]
[382487216,1756645856234,-155.7561095,0.00018052,2]
[382487217,1756645856244,-480.0,0.00018052,2]
[382487219,1756645856255,-778.5,0.00018052,2]
[382487221,1756645856264,-480.0,0.00018052,2]
[382487223,1756645856273,-480.0,0.00018052,2]
[382487225,1756645856283,-480.0,0.00018052,2]
[382487227,1756645856292,-480.0,0.00018052,2]
[382487229,1756645856301,-1059.21,0.00018052,2]
[382487231,1756645856311,-420.51214231,0.00018052,2]
[382487233,1756645856321,-480.0,0.00018052,2]
[382487235,1756645856330,-843.8,0.00018052,2]
[382487237,1756645856340,-480.0,0.00018052,2]
[382487239,1756645856349,-512.39,0.00018052,2]
[382487240,1756645856359,-480.0,0.00018052,2]
[382487242,1756645856368,-885.43,0.00018052,2]
[382487243,1756645856377,-990.62,0.00018052,2]
[382487244,1756645856386,-480.0,0.00018052,2]
[382487245,1756645856395,-269.48133979,0.00018052,2]
[382487246,1756645856404,-480.0,0.00018052,2]
[382487247,1756645856414,-480.0,0.00018052,2]
[382487248,1756645856423,-532.68,0.00018052,2]
[382487249,1756645856432,-1000.0,0.00018052,2]
[382487250,1756645856442,-480.0,0.00018052,2]
[382487251,1756645856451,-480.0,0.00018052,2]
[382487252,1756645856461,-480.0,0.00018052,2]
[382487253,1756645856471,-516.25,0.00018052,2]
[382487254,1756645856480,-1082.72,0.00018052,2]
[382487255,1756645856489,-480.0,0.00018052,2]
[382487256,1756645856500,-480.0,0.00018052,2]
[382487257,1756645856510,-480.0,0.00018052,2]
[382487258,1756645856519,-480.0,0.00018052,2]
[382487259,1756645856529,-480.0,0.00018052,2]
[382487260,1756645856538,-738.24,0.00018052,2]
[382487261,1756645856547,-654.02,0.00018052,2]
[382487262,1756645856557,-1521.79,0.00018052,2]
[382487263,1756645856567,-198.85582042,0.00018052,2]
[382487264,1756645856717,-480.0,0.00018052,2]
[382487266,1756645856740,-480.0,0.00018052,2]
[382487268,1756645856751,-480.0,0.00018052,2]
[382487270,1756645856761,-586.76,0.00018052,2]
[382487272,1756645856771,-480.0,0.00018052,2]
[382487273,1756645856781,-480.0,0.00018052,2]
[382487275,1756645856791,-480.0,0.00018052,2]
[382487278,1756645856800,-789.46,0.00018052,2]
[382487280,1756645856810,-759.74,0.00018052,2]
[382487282,1756645856822,-684.59,0.00018052,2]
[382487284,1756645856831,-480.0,0.00018052,2]
[382487286,1756645856841,-397.86534123,0.00018052,2]
[382487288,1756645856850,-480.0,0.00018052,2]
[382487290,1756645856860,-428.97703578,0.00018052,2]
[382487292,1756645856869,-480.0,0.00018052,2]
[382487294,1756645856879,-1550.77,0.00018052,2]
[382487296,1756645856888,-480.0,0.00018052,2]
[382487298,1756645856897,-480.0,0.00018052,2]
[382487300,1756645856907,-480.0,0.00018052,2]
[382487302,1756645856916,-480.0,0.00018052,2]
[382487304,1756645856925,-480.0,0.00018052,2]
[382487306,1756645856935,-480.0,0.00018052,2]
[382487308,1756645856944,-480.0,0.00018052,2]
[382487310,1756645856953,-480.0,0.00018052,2]
[382487312,1756645856962,-480.0,0.00018052,2]
[382487314,1756645856971,-836.71,0.00018052,2]
[382487316,1756645856980,-508.74794958,0.00018052,2]
[382487318,1756645856990,-480.0,0.00018052,2]
[382487320,1756645856999,-480.0,0.00018052,2]
[382487322,1756645857008,-481.29,0.00018052,2]
[382487324,1756645857020,-572.76,0.00018052,2]
[382487326,1756645857029,-607.24,0.00018052,2]
[382487328,1756645857038,-571.99,0.00018052,2]
[382487330,1756645857048,-572.28,0.00018052,2]
[382487332,1756645857057,-480.0,0.00018052,2]
[382487334,1756645857066,-519.29,0.00018052,2]
[382487336,1756645857075,-480.0,0.00018052,2]
[382487337,1756645857086,-480.0,0.00018052,2]
[382487339,1756645857097,-480.0,0.00018052,2]
[382487342,1756645857107,-881.51,0.00018052,2]
[382487343,1756645857117,-581.67,0.00018052,2]
[382487346,1756645857126,-675.39,0.00018052,2]
[382487347,1756645857136,-480.0,0.00018052,2]
[382487349,1756645857145,-480.0,0.00018052,2]
[382487352,1756645857155,-480.0,0.00018052,2]
[382487353,1756645857164,-480.0,0.00018052,2]
[382487356,1756645857174,-503.8,0.00018052,2]
[382487357,1756645857183,-480.0,0.00018052,2]
[382487360,1756645857194,-480.0,0.00018052,2]
[382487361,1756645857204,-480.0,0.00018052,2]
[382487364,1756645857215,-435.60249108,0.00018059,2]
[382487366,1756645857225,-587.81558692,0.00018059,2]
[382487367,1756645857234,-480.0,0.00018059,2]
[382487369,1756645857244,-480.0,0.00018059,2]
[382487371,1756645857254,-679.06,0.00018059,2]
[382487373,1756645857263,-891.59,0.00018059,2]
[382487375,1756645857272,-1776.4,0.00018059,2]
[382487378,1756645857283,-541.57,0.00018059,2]
[382487379,1756645857292,-1014.96,0.00018059,2]
[382487382,1756645857302,-480.0,0.00018059,2]
[382487383,1756645857311,-1661.42,0.00018059,2]
[382487385,1756645857321,-1172.73,0.00018059,2]
[382487387,1756645857330,-1654.63,0.00018059,2]
[382487389,1756645857340,-831.83,0.00018059,2]
[382487391,1756645857350,-625.91,0.00018059,2]
[382487394,1756645857359,-480.0,0.00018059,2]
[382487395,1756645857369,-480.0,0.00018059,2]
[382487398,1756645857378,-480.0,0.00018059,2]
[382487400,1756645857387,-586.48,0.00018059,2]
[382487401,1756645857397,-1076.16,0.00018059,2]
[382487404,1756645857406,-961.35,0.00018059,2]
[382487405,1756645857416,-480.0,0.00018059,2]
[382487407,1756645857425,-480.0,0.00018059,2]
[382487409,1756645857435,-480.0,0.00018059,2]
[382487411,1756645857445,-480.0,0.00018059,2]
[382487414,1756645857455,-1399.32,0.00018059,2]
[382487415,1756645857465,-580.87,0.00018059,2]
[382487417,1756645857474,-1317.7,0.00018059,2]
[382487420,1756645857485,-872.85,0.00018059,2]
[382487422,1756645857495,-480.0,0.00018059,2]
[382487424,1756645857506,-480.0,0.00018059,2]
[382487425,1756645857515,-480.0,0.00018059,2]
[382487427,1756645857525,-480.0,0.00018059,2]
[382487429,1756645857545,-1284.0,0.00018059,2]
[382487431,1756645857554,-480.0,0.00018059,2]
[382487433,1756645857564,-504.7,0.00018059,2]
[382487435,1756645857575,-480.0,0.00018059,2]
[382487437,1756645857584,-345.62403069,0.00018059,2]
[382487439,1756645857594,-480.0,0.00018059,2]
[382487441,1756645857603,-618.42,0.00018059,2]
[382487443,1756645857613,-995.45,0.00018059,2]
[382487445,1756645857625,-605.84,0.00018059,2]
[382487447,1756645857634,-598.65,0.00018059,2]
[382487449,1756645857643,-480.0,0.00018059,2]
[382487451,1756645857653,-902.36,0.00018059,2]
[382487453,1756645857662,-480.0,0.00018061,2]
[382487455,1756645857672,-480.0,0.00018061,2]
[382487457,1756645857681,-480.0,0.00018061,2]
[382487459,1756645857691,-867.44,0.00018061,2]
[382487461,1756645857700,-400.49167426,0.00018061,2]
[382487463,1756645857709,-480.0,0.00018061,2]
[382487465,1756645857719,-500.0,0.00018061,2]
[382487467,1756645857728,-604.62,0.00018061,2]
[382487469,1756645857738,-480.0,0.00018061,2]
[382487471,1756645857747,-480.0,0.00018061,2]
[382487473,1756645857756,-480.0,0.00018061,2]
[382487475,1756645857766,-480.0,0.00018061,2]
[382487477,1756645857775,-480.0,0.00018061,2]
[382487479,1756645857784,-1034.71,0.00018061,2]
[382487481,1756645857794,-480.0,0.00018061,2]
[382487483,1756645857804,-886.08,0.00018061,2]
[382487485,1756645857814,-480.0,0.00018061,2]
[382487487,1756645857824,-480.0,0.00018061,2]
[382487489,1756645857834,-480.0,0.00018061,2]
[382487491,1756645857843,-272.52744143,0.00018061,2]
[382487493,1756645857853,-480.0,0.00018061,2]
[382487495,1756645857863,-540.7,0.00018061,2]
[382487497,1756645857872,-534.41,0.00018061,2]
[382487499,1756645857881,-1155.37,0.00018061,2]
[382487501,1756645857891,-1075.3,0.00018061,2]
[382487503,1756645857900,-545.33,0.00018061,2]
[382487505,1756645857909,-480.0,0.00018061,2]
[382487507,1756645857920,-480.0,0.00018061,2]
[382487509,1756645857930,-723.03,0.00018061,2]
[382487511,1756645857939,-480.0,0.00018061,2]
[382487513,1756645857948,-480.0,0.00018061,2]
[382487515,1756645857957,-480.0,0.00018061,2]
[382487517,1756645857967,-883.14,0.00018061,2]
[382487519,1756645857976,-480.0,0.00018061,2]
[382487521,1756645857986,-384.98239641,0.00018061,2]
[382487523,1756645857995,-480.0,0.00018061,2]
[382487525,1756645858005,-480.0,0.00018061,2]
[382487527,1756645858014,-480.0,0.00018061,2]
[382487529,1756645858023,-868.26,0.00018061,2]
[382487531,1756645858033,-594.65,0.00018061,2]
[382487533,1756645858043,-1119.31,0.00018061,2]
[382487535,1756645858052,-1302.06,0.00018061,2]
[382487537,1756645858061,-693.64,0.00018061,2]
[382487539,1756645858071,-480.0,0.00018061,2]
[382487541,1756645858081,-1625.51,0.00018061,2]
[382487543,1756645858091,-480.0,0.00018061,2]
[382487545,1756645858103,-598.73,0.00018061,2]
[382487547,1756645858113,-480.0,0.00018061,2]
[382487549,1756645858123,-1302.91,0.00018061,2]
[382487551,1756645858133,-872.98,0.00018061,2]
[382487553,1756645858142,-480.0,0.00018061,2]
[382487555,1756645858152,-628.8,0.00018061,2]
[382487557,1756645858161,-566.93,0.00018061,2]
[382487559,1756645858171,-480.0,0.00018061,2]
[382487561,1756645858180,-480.0,0.00018061,2]
[382487563,1756645858190,-480.0,0.00018061,2]
[382487565,1756645858200,-480.0,0.00018061,2]
[382487567,1756645858209,-480.0,0.00018061,2]
[382487569,1756645858219,-676.25,0.00018061,2]
[382487571,1756645858228,-501.15,0.00018061,2]
[382487573,1756645858238,-480.0,0.00018061,2]
[382487575,1756645858249,-715.88,0.00018061,2]
[382487577,1756645858258,-480.0,0.00018061,2]
[382487579,1756645858267,-481.32029746,0.00018061,2]
[382487581,1756645858276,-480.0,0.00018061,2]
[382487583,1756645858286,-480.0,0.00018061,2]
[382487585,1756645858296,-762.83,0.00018061,2]
[382487587,1756645858307,-642.22,0.00018061,2]
[382487589,1756645858316,-480.0,0.00018061,2]
[382487591,1756645858327,-574.82,0.00018061,2]
[382487593,1756645858336,-6000.0,0.00018062,2]
[382487595,1756645858346,-151.0,0.00018066,2]
[382487597,1756645858356,-500.0,0.00018066,2]
[382487599,1756645858365,-619.28300412,0.00018066,2]
[382487601,1756645858375,-198.0,0.00018066,2]
[382487603,1756645858385,-571.37089005,0.00018066,2]
[382487605,1756645858395,-500.0,0.00018066,2]
[382487607,1756645858404,-500.0,0.00018066,2]
[382487609,1756645858414,-500.0,0.00018066,2]
[382487611,1756645858423,-1542.0,0.00018066,2]
[382487613,1756645858433,-151.0,0.00018066,2]
[382487615,1756645858444,-500.0,0.00018066,2]
[382487617,1756645858456,-151.0,0.00018066,2]
[382487619,1756645858466,-151.0,0.00018066,2]
[382487621,1756645858476,-500.0,0.00018073,2]
[382487623,1756645858485,-500.0,0.00018073,2]
[382487625,1756645858495,-200.24265557,0.00018073,2]
[382487628,1756645858505,-500.0,0.00018073,2]
[382487629,1756645858514,-500.0,0.00018073,2]
[382487632,1756645858524,-500.13222882,0.00018073,2]
[382487634,1756645858535,-500.0,0.00018073,2]
[382487635,1756645858545,-500.0,0.00018073,2]
[382487637,1756645858555,-500.0,0.00018073,2]
[382487640,1756645858566,-500.0,0.00018073,2]
[382487642,1756645858576,-500.0,0.00018073,2]
[382487644,1756645858586,-500.0,0.00018073,2]
[382487646,1756645858597,-500.0,0.00018073,2]
[382487648,1756645858607,-500.0,0.00018073,2]
[382487650,1756645858616,-500.0,0.00018073,2]
[382487652,1756645858626,-500.98601941,0.00018073,2]
[382487654,1756645858635,-500.0,0.00018073,2]
[382487656,1756645858644,-500.0,0.00018073,2]
[382487658,1756645858653,-501.46880023,0.00018073,2]
[382487660,1756645858662,-399.80913644,0.00018073,2]
[382487662,1756645858671,-615.5149686,0.00018073,2]
[382487664,1756645858681,-512.36333163,0.00018073,2]
[382487666,1756645858691,-500.51647778,0.00018073,2]
[382487668,1756645858701,-500.80708862,0.00018073,2]
[382487670,1756645858711,-500.73117275,0.00018073,2]
[382487672,1756645858720,-500.0,0.00018073,2]
[382487674,1756645858729,-500.91095151,0.00018073,2]
[382487676,1756645858739,-500.0,0.00018073,2]
[382487678,1756645858748,-500.0,0.00018073,2]
[382487680,1756645858757,-500.0,0.00018073,2]
[382487682,1756645858767,-500.0,0.00018073,2]
[382487684,1756645858776,-500.0,0.00018073,2]
[382487686,1756645858785,-500.0,0.00018073,2]
[382487688,1756645858794,-174.19792125,0.00018073,2]
[382487689,1756645858803,-500.0,0.00018073,2]
[382487691,1756645858813,-500.0,0.00018073,2]
[382487693,1756645858823,-501.81605075,0.00018073,2]
[382487696,1756645858833,-500.0,0.00018073,2]
[382487698,1756645858843,-500.0,0.00018073,2]
[382487700,1756645858852,-500.0,0.00018073,2]
[382487702,1756645858862,-500.0,0.00018073,2]
[382487704,1756645858871,-500.0,0.00018073,2]
[382487705,1756645858881,-500.50081513,0.00018073,2]
[382487707,1756645858891,-425.23872877,0.00018073,2]
[382487709,1756645858900,-500.0,0.00018073,2]
[382487712,1756645858909,-500.0,0.00018073,2]
[382487713,1756645858919,-166.41033355,0.00018073,2]
[382487715,1756645858928,-564.56463882,0.00018073,2]
[382487717,1756645858938,-500.0,0.00018073,2]
[382487719,1756645858947,-500.0,0.00018073,2]
[382487721,1756645858956,-500.0,0.00018073,2]
[382487723,1756645858965,-500.0,0.00018073,2]
[382487725,1756645858974,-341.9881509,0.00018082,2]
[382487727,1756645858983,-1400.0,0.00018083,2]
[382487729,1756645858992,-975.0,0.00018108,2]
[382487731,1756645859002,-632.0,0.00018108,2]
[382487733,1756645859011,-2152.0,0.00018108,2]
[382487735,1756645859020,-551.732,0.00018108,2]
[382487737,1756645859030,-422.354,0.00018108,2]
[382487739,1756645859039,-2329.55193393,0.00018151,2]
[382487741,1756645859049,-2798.46830675,0.00018174,2]
[382487742,1756645859058,-7000.0,0.00018198,2]
[382487743,1756645859068,-1000.0,0.000182,2]
[382487744,1756645859078,-261.0,0.00018202,2]
[382487745,1756645859089,-290.70175368,0.00018219,2]
[382487746,1756645859101,-13704.06711517,0.00018222,2]
[382487747,1756645859110,-220.0,0.00018224,2]
[382487749,1756645859119,-168.0,0.00018228,2]
[382487751,1756645859179,-150.0,0.00018235,2]
[382487753,1756645859190,-207.93,0.00018235,2]
[382487755,1756645859199,-250.0,0.00018235,2]
[382487757,1756645859208,-150.134,0.00018235,2]
[382487759,1756645859217,-150.0,0.00018235,2]
[382487761,1756645859227,-255.159,0.00018235,2]
[382487763,1756645859236,-150.0,0.00018235,2]
[382487765,1756645859245,-156.907314,0.00018252,15]
[382487767,1756645859255,-156.907314,0.00018255,15]
[382487769,1756645859264,-156.907314,0.00018257,10]
[382487771,1756645859273,-916.14,0.00018273,2]
[382487773,1756645859283,-8000.0,0.00018318,2]
[382487775,1756645859292,-261.0,0.0001832,2]
[382487777,1756645859301,-1000.0,0.00018321,2]
[382487779,1756645859311,-1001.5677558,0.00018321,2]
[382487781,1756645859320,-1000.0,0.00018321,2]
[382487783,1756645859330,-1000.0,0.00018321,2]
[382487785,1756645859339,-486.9843952,0.00018321,2]
[382487787,1756645859348,-1000.0,0.00018321,2]
[382487789,1756645859357,-1001.40685948,0.00018321,2]
[382487791,1756645859367,-1000.0,0.00018321,2]
[382487793,1756645859376,-515.26951269,0.00018321,2]
[382487795,1756645859385,-1004.30330387,0.00018321,2]
[382487797,1756645859394,-1000.0,0.00018321,2]
[382487799,1756645859403,-1000.0,0.00018321,2]
[382487801,1756645859413,-1000.0,0.00018321,2]
[382487803,1756645859422,-432.56640123,0.00018321,2]
[382487805,1756645859431,-510.94333666,0.00018321,2]
[382487807,1756645859440,-1000.0,0.00018321,2]
[382487809,1756645859450,-1000.0,0.00018321,2]
[382487811,1756645859461,-476.20108331,0.00018321,2]
[382487813,1756645859470,-1000.0,0.00018321,2]
[382487815,1756645859480,-504.8416873,0.00018321,2]
[382487817,1756645859489,-1079.34668092,0.00018321,2]
[382487819,1756645859498,-1000.0,0.00018321,2]
[382487821,1756645859507,-1000.0,0.00018321,2]
[382487823,1756645859518,-1000.0,0.00018321,2]
[382487825,1756645859527,-1002.21089762,0.00018321,2]
[382487827,1756645859536,-1000.0,0.00018321,2]
[382487829,1756645859547,-1000.0,0.00018321,2]
[382487831,1756645859557,-403.58140753,0.00018321,2]
[382487833,1756645859566,-1000.0,0.00018321,2]
[382487835,1756645859575,-1000.0,0.00018321,2]
[382487837,1756645859585,-616.86118799,0.00018321,2]
[382487839,1756645859595,-501.4016472,0.00018321,2]
[382487841,1756645859604,-1000.0,0.00018321,2]
[382487843,1756645859614,-1000.0,0.00018321,2]
[382487845,1756645859625,-1000.0,0.00018321,2]
[382487847,1756645859634,-480.0,0.00018322,2]
[382487849,1756645859643,-480.0,0.00018322,2]
[382487851,1756645859653,-4106.62,0.00018322,2]
[382487853,1756645859662,-614.52,0.00018322,2]
[382487855,1756645859671,-480.0,0.00018322,2]
[382487857,1756645859680,-1885.03,0.00018322,2]
[382487859,1756645859690,-1134.9,0.00018322,2]
[382487861,1756645859699,-950.4,0.00018322,2]
[382487863,1756645859708,-1396.78,0.00018322,2]
[382487865,1756645859717,-624.1,0.00018322,2]
[382487867,1756645859726,-480.0,0.00018322,2]
[382487869,1756645859736,-1422.0,0.00018322,2]
[382487871,1756645859745,-480.0,0.00018322,2]
[382487873,1756645859755,-1381.49,0.00018322,2]
[382487875,1756645859764,-1091.68,0.00018322,2]
[382487877,1756645859773,-5790.36,0.00018322,2]
[382487879,1756645859783,-1324.89,0.00018322,2]
[382487881,1756645859792,-1497.05,0.00018322,2]
[382487883,1756645859802,-480.0,0.00018322,2]
[382487885,1756645859811,-2930.86,0.00018322,2]
[382487887,1756645859820,-720.08,0.00018322,2]
[382487889,1756645859830,-3429.33,0.00018322,2]
[382487891,1756645859839,-4813.24,0.00018322,2]
[382487893,1756645859849,-3007.66,0.00018322,2]
[382487895,1756645859858,-1346.8,0.00018322,2]
[382487897,1756645859868,-4038.61,0.00018322,2]
[382487899,1756645859877,-480.0,0.00018322,2]
[382487902,1756645859887,-1333.53,0.00018322,2]
[382487903,1756645859897,-1291.1,0.00018322,2]
[382487906,1756645859907,-480.0,0.00018322,2]
[382487907,1756645859916,-573.36,0.00018322,2]